[Event "German Bundesliga 2024-25"]
[Site "Germany"]
[Date "2024.10.06"]
[Round "2.10"]
[White "Areshchenko, Alexander"]
[Black "Rakotomaharo, Fy Antenaina"]
[Result "1/2-1/2"]
[Annotator "TA"]
[ECO "C75"]
[WhiteElo "2613"]
[BlackElo "2434"]
[PlyCount "48"]
[EventDate "2024.09.27"]
[EventType "team-tourn"]
[EventCountry "GER"]
[SourceTitle "playchess.com"]
[Source "ChessBase"]
[SourceQuality "1"]
[WhiteTeam "Werder Bremen"]
[BlackTeam "Bad Mergentheim"]
[TimeControl "40/5400+30:1800+30"]

{[%evp 18,48,33,15,26,8,14,9,50,12,62,13,41,50,50,53,46,34,31,29,35,-47,-50,-54,-8,-116,-97,-81,0,-119,40,-42,-34]} 1. e4 {[%emt 0:00:03]} e5 {[%emt 0:00:10]} 2. Nf3 {[%emt 0:00:04]} Nc6 {[%emt 0:00:04]} 3. Bb5 {[%emt 0:00:03]} a6 {[%emt 0:00:22]} 4. Ba4 {[%emt 0:00:04]} d6 {[%emt 0:00:05]} 5. O-O {[%emt 0:01:55]} Bd7 {[%emt 0:00:06]} 6. c3 {[%emt 0:00:34]} Nge7 {[%emt 0:00:33]} 7. d4 {[%emt 0:00:36]} Ng6 {[%emt 0:00:16]} 8. Re1 {[%emt 0:02:46]} Be7 {[%emt 0:00:32]} 9. Be3 {[%emt 0:01:53]} O-O {[%emt 0:01:25]} 10. Nbd2 {[%emt 0:00:10]} exd4 {[%emt 0:03:58]} 11. cxd4 {[%emt 0:01:12]} d5 {[%emt 0:00:08]} 12. e5 {[%emt 0:17:43]} Kh8 {[%emt 0:08:03] The position is equal.} 13. Rc1 {[%emt 0:09:55]} f6 {[%emt 0:16:14]} ({Black should try} 13... Nb4 $11) 14. Bc2 {[%emt 0:06:12]} (14. exf6 $14 Bxf6 15. Bc2) 14... f5 {[%emt 0:39:54][%cal Bf6f5,Bf5f4][%mdl 32] [#] aiming for ...f4.} 15. Nb3 {[%emt 0:00:50]} f4 {[%emt 0:03:12]} 16. Bd2 {[%emt 0:00:19]} Bg4 {[%emt 0:00:09]} 17. h3 {[%emt 0:18:26]} Bh5 {[%emt 0:01:03]} 18. Bd3 {[%emt 0:00:07]} (18. Bxg6 {simplifies} Bxg6 19. Nc5 Bxc5 20. Rxc5 Bh5 21. Bc3) 18... Nb4 {[%emt 0:05:54]} 19. Bb1 {[%emt 0:03:35]} (19. Bxg6 $14 Bxg6 20. Bxb4 Bxb4 21. Nbd2) 19... Nh4 $15 {[%emt 0:03:17]} 20. Kh2 {[%emt 0:01:54]} a5 {[%emt 0:09:49]} (20... Nc6 $15) 21. Bc3 {[%emt 0:07:48]} (21. Nc5 $11 {remains equal.} Nxf3+ 22. gxf3 Bxc5 23. Rxc5) 21... Nxf3+ {[%emt 0:00:21]} 22. gxf3 {[%emt 0:00:03]} a4 {[%emt 0:01:02]} (22... Nc6 $17) 23. Nd2 {[%emt 0:12:41]} (23. Nc5 $11 {was the only way to keep the balance.} Bxc5 24. dxc5) 23... c5 $2 {[%emt 0:05:04] [#]} ({Better is} 23... Nc6 $17 24. Qe2 Bf7) 24. Bxb4 ({White should play} 24. dxc5 $1 $14 Bxc5 25. e6) 24... cxb4 {Weighted Error Value: White=0.49/Black=0.37.  Mistake:       	White=5     	Black=4      Inaccurate:     	White=1     	Black=2      OK:         	White=1     	Black=3      Best:        	White=1     	Black=1} 1/2-1/2

[Event "German Bundesliga 2024-25"]
[Site "Germany"]
[Date "2024.09.29"]
[Round "2.11"]
[White "Kadric, Denis"]
[Black "Sindarov, Javokhir"]
[Result "0-1"]
[Annotator "TA"]
[ECO "B95"]
[WhiteElo "2553"]
[BlackElo "2677"]
[PlyCount "92"]
[EventDate "2024.09.27"]
[EventType "team-tourn"]
[EventCountry "GER"]
[SourceTitle "playchess.com"]
[Source "ChessBase"]
[SourceQuality "1"]
[WhiteTeam "SK Kirchweyhe"]
[BlackTeam "Duesseldorfer SK"]
[TimeControl "40/5400+30:1800+30"]

{[%evp 12,92,8,0,16,0,14,8,19,0,0,0,0,0,0,-20,14,11,21,18,27,4,18,6,11,-23,0,-43,-58,-76,-85,-60,-58,-84,-67,-82,-79,-81,-74,-92,-75,-75,-71,-69,-10,-97,-108,-123,-118,-139,-134,-193,-106,-94,-86,-100,-93,-140,-130,-189,-187,-196,-187,-181,-178,-200,-191,-215,-212,-220,-218,-206,-102,-109,-101,-123,-78,-150,-113,-280,-298,-280,-236]} 1. e4 {[%emt 0:00:03]} c5 {[%emt 0:00:10]} 2. Nf3 {[%emt 0:00:04]} d6 {[%emt 0:00:07]} 3. d4 {[%emt 0:00:04]} cxd4 {[%emt 0:00:06]} 4. Nxd4 {[%emt 0:00:02]} Nf6 {[%emt 0:00:10]} 5. Nc3 {[%emt 0:00:02]} a6 {[%emt 0:00:11]} 6. Bg5 {[%emt 0:00:07]} e6 {[%emt 0:01:53]} 7. Qf3 {[%emt 0:00:08]} Be7 {[%emt 0:02:26]} 8. Be2 {[%emt 0:02:57]} Nbd7 {[%emt 0:04:03]} 9. a4 {[%emt 0:01:09]} Qc7 {[%emt 0:05:14] The position is equal.} 10. O-O {[%emt 0:00:53]} b6 {[%emt 0:04:31]} 11. Rad1 {[%emt 0:00:21]} Bb7 {[%emt 0:02:33]} 12. Qg3 {[%emt 0:02:12]} O-O {[%emt 0:07:09]} 13. f4 {[%emt 0:02:28]} Kh8 {[%emt 0:10:24]} (13... Nxe4 $2 14. Nxe4 Rfe8 15. Bxe7 Rxe7 16. Bd3 $18) (13... Bxe4 14. f5 Bxf5 15. Nxf5 exf5 16. Rxf5 $14) (13... Nc5 $5) 14. Bf3 {[%emt 0:00:23][%cal Oe4e5]} Ng8 {[%emt 0:06:26]} 15. Rd2 {[%emt 0:10:10]} Rad8 {[%emt 0:03:51]} 16. Rfd1 {[%emt 0:04:13]} Nc5 {[%emt 0:07:30]} 17. b4 {[%emt 0:16:07]} Nd7 {[%emt 0:02:17]} 18. Nde2 {[%emt 0:01:01]} Ndf6 $1 {[%emt 0:06:33][%cal Od6d5]} 19. f5 {[%emt 0:22:27]} e5 {[%emt 0:01:28]} 20. Be3 {[%emt 0:00:59]} Rc8 $1 {[%emt 0:01:24]} 21. Qf2 {[%emt 0:03:12]} Qc4 {[%emt 0:00:50][%csl LRb4,LRe4][%cal Rf6e4]} 22. Bxb6 {[%emt 0:01:22]} Bxe4 {[%emt 0:00:55]} 23. Bxe4 {[%emt 0:16:04]} Nxe4 {[%emt 0:00:15]} 24. Nxe4 {[%emt 0:00:20]} Qxe4 {[%emt 0:00:09]} 25. c3 {[%emt 0:03:12]} Qc6 {[%emt 0:00:19]} 26. a5 {[%emt 0:02:11]} Nf6 {[%emt 0:00:07] White must now prevent ...Ne4.} 27. Qe3 {[%emt 0:00:43]} Qb5 {[%emt 0:01:14]} (27... Qb7 $15) 28. Qf3 {[%emt 0:01:46]} (28. Nf4 $1 $11 {keeps the balance.}) 28... Rc4 $17 {[%emt 0:01:52]} 29. Qb7 {[%emt 0:05:53]} Re8 {[%emt 0:00:06]} 30. h3 {[%emt 0:00:57] [#]} Kg8 $1 {[%emt 0:00:40]} 31. Qa7 {[%emt 0:01:31]} (31. Rd3 $17 {was worth a try.}) 31... Bf8 {[%emt 0:01:42]} (31... d5 $19 {Threatens to win with ...Rcc8.} 32. Rb2 d4 33. cxd4 Rxb4 (33... Bxb4 34. Rdb1 $17)) 32. Bf2 {[%emt 0:01:45]} Rc6 {[%emt 0:07:46] Repels Qb6} 33. Qe3 {[%emt 0:00:16]} d5 {[%emt 0:00:48]} 34. Qd3 {[%emt 0:01:45]} ({White should play} 34. Bh4 d4 35. cxd4) 34... Rc4 {[%emt 0:00:18][%cal Od5d4]} 35. Be1 {[%emt 0:00:39] [#]} (35. Rc2 $17 {might work better.}) 35... d4 $1 $19 {[%emt 0:01:32][%mdl 512]} 36. cxd4 {[%emt 0:00:06] [#]} (36. Bf2 Rec8) 36... e4 {[%emt 0:00:05]} (36... Qxb4 $2 {too greedy.} 37. Rc2 Rxd4 38. Nxd4 (38. Bxb4 Rxd3 39. Rxd3 Bxb4 $16) 38... Qxd4+ 39. Qxd4 exd4 40. Rc6 $18) ({Less strong is} 36... Bxb4 37. Rb2 e4 38. Qb1 $15) (36... Rxb4 37. dxe5 Rxe5 (37... Qxe5 38. Qxa6 Ra4 39. Ng3 $15) 38. Qxb5 Rbxb5 39. Ng3 Bc5+ (39... Rxa5 40. Rd8 $11) 40. Kf1 $15) 37. Qg3 {[%emt 0:00:34]} Bxb4 {[%emt 0:03:22]} 38. Ra2 {[%emt 0:00:36]} Bf8 {[%emt 0:00:05]} 39. Qf2 {[%emt 0:00:34]} Qb3 {[%emt 0:00:51]} 40. Rda1 {[%emt 0:00:39] White is weak on the light squares} Rec8 {[%emt 0:01:16]} 41. Qg3 {[%emt 0:03:12]} Qd3 {[%emt 0:14:30]} (41... Qb5 $19 {[%cal Oh7h6] has better winning chances.} 42. Qf4 Re8) 42. Rd2 $17 {[%emt 0:09:50]} Qxg3 {[%emt 0:00:00]} 43. Bxg3 {[%emt 0:02:22]} Nd5 $36 {[%emt 0:00:00][%mdl 2048] Black is in control.} 44. Be1 {[%emt 0:01:44]} (44. Rb1 $142) 44... Rb8 {[%emt 0:00:00] Black has more active pieces.} 45. Rc1 $2 {[%emt 0:03:35]} (45. Ng3 $17) 45... Rxc1 $19 {[%emt 0:00:00]} 46. Nxc1 {[%emt 0:00:01]} g6 {[%emt 0:00:00] Weighted Error Value: White=0.23 (precise) /Black=0.13 (very precise) .  Loses game:     	White=1     	---        Mistake:       	White=5     	Black=3      Inaccurate:     	White=3     	Black=1      OK:         	White=9     	Black=17     Best:        	White=2     	Black=3      Strong:       	---       	Black=2} 0-1

[Event "German Bundesliga 2024-25"]
[Site "Germany"]
[Date "2024.10.06"]
[Round "2.11"]
[White "Sankalp Gupta"]
[Black "Vitiugov, Nikita"]
[Result "1/2-1/2"]
[Annotator "TA"]
[ECO "C89"]
[WhiteElo "2534"]
[BlackElo "2667"]
[PlyCount "79"]
[EventDate "2024.09.27"]
[EventType "team-tourn"]
[EventCountry "GER"]
[SourceTitle "playchess.com"]
[Source "ChessBase"]
[SourceQuality "1"]
[WhiteTeam "Deggendorf"]
[BlackTeam "Baden-Baden"]
[TimeControl "40/5400+30:1800+30"]

{[%evp 15,79,37,38,33,31,25,31,18,30,0,0,-3,38,19,47,33,24,46,58,22,61,26,23,25,42,25,77,68,68,70,71,56,68,15,16,29,20,19,21,12,18,18,15,19,13,16,17,19,14,20,27,17,18,22,17,22,14,0,0,0,0,0,0,0,0,0]} 1. e4 {[%emt 0:00:10]} e5 {[%emt 0:00:09]} 2. Nf3 {[%emt 0:00:02]} Nc6 {[%emt 0:00:05]} 3. Bb5 {[%emt 0:00:05]} a6 {[%emt 0:00:07]} 4. Ba4 {[%emt 0:00:03]} Nf6 {[%emt 0:00:26]} 5. O-O {[%emt 0:00:04]} Be7 {[%emt 0:00:20]} 6. Re1 {[%emt 0:00:02]} b5 {[%emt 0:00:15]} 7. Bb3 {[%emt 0:00:03]} O-O {[%emt 0:00:08]} 8. c3 {[%emt 0:00:02]} Na5 {[%emt 0:00:55]} 9. Bc2 {[%emt 0:06:59]} d5 {[%emt 0:00:28]} 10. d4 {[%emt 0:04:09]} dxe4 {[%emt 0:00:37]} 11. Nxe5 {[%emt 0:05:39][%cal Ob2b4] White is slightly better.} c5 {[%emt 0:00:51]} 12. Bg5 {[%emt 0:13:52]} Bb7 {[%emt 0:12:28]} 13. dxc5 {[%emt 0:00:51]} Bxc5 {[%emt 0:09:30]} (13... Qc7 $5 14. Ng4 Rad8 15. Nxf6+ Bxf6 $11) 14. Qxd8 {[%emt 0:11:57]} Raxd8 {[%emt 0:03:06]} 15. b4 $1 {[%emt 0:00:06]} Bd6 {[%emt 0:02:07]} 16. Bxf6 {[%emt 0:00:11]} (16. Nxf7 Rxf7 17. bxa5 h6 $15) 16... gxf6 {[%emt 0:00:05]} 17. Ng4 {[%emt 0:00:03][%cal Be5g4,Bg4f6,Bf6h5,Bh5g3][%mdl 32]} (17. bxa5 $2 Bxe5 (17... fxe5 18. Bxe4 Bxe4 19. Rxe4 $15) 18. Kf1 b4 $19 (18... Bxh2 19. a4 $15) (18... f5 $2 19. g4 $19)) 17... Nc4 {[%emt 0:00:35]} 18. Bxe4 {[%emt 0:05:35]} Bc8 {[%emt 0:09:58] A strong pair of Bishops.} 19. Nxf6+ {[%emt 0:04:16]} Kg7 {[%emt 0:01:43]} 20. Nh5+ {[%emt 0:00:41]} (20. Nxh7 $2 Rfe8 21. Ng5 f5 $19) 20... Kh6 {[%emt 0:01:11] [#]} (20... Kh8 $11 {remains equal.}) 21. Ng3 $1 $16 {[%emt 0:01:01]} Rfe8 {[%emt 0:00:57] ...Bxg3 would now be deadly.} 22. Kf1 $1 {[%emt 0:00:17]} Bf4 {[%emt 0:03:08]} 23. a3 {[%emt 0:06:05]} (23. Nf5+ {simplifies} Bxf5 24. Bxf5 Nd2+ 25. Nxd2 Bxd2 26. Rxe8 Rxe8 27. Rb1) 23... Re5 {[%emt 0:18:47] ...Rde8 is the strong threat.} 24. Ra2 {[%emt 0:16:20]} (24. Bc2 $1 $14) 24... Be6 $1 $11 {[%emt 0:05:09]} 25. Rae2 {[%emt 0:10:44] Repels Ne3+} Nb6 $1 {[%emt 0:15:06] [#]} 26. Bd3 {[%emt 0:02:55] Prevents Bc4} Rxd3 {[%emt 0:03:25]} ({Much worse is} 26... Bxg3 27. fxg3 (27. hxg3 Rh5 $14) 27... Rg5 28. Rxe6+ fxe6 29. Rxe6+ Kg7 30. Ke2 $14 (30. Rxb6 Rxd3 31. Re6 Rh5 $19)) 27. Rxe5 {[%emt 0:00:02]} Bxe5 {[%emt 0:00:05]} 28. Rxe5 {[%emt 0:00:03] With the idea Ke1.} Ba2 $1 {[%emt 0:04:06]} 29. Re1 {[%emt 0:00:02]} Nc4 {[%emt 0:01:05] Threatens to win with ...Bxb1.} 30. Ke2 {[%emt 0:04:05]} Bxb1 {[%emt 0:00:53]} 31. Rxb1 {[%emt 0:00:02]} Rxc3 {[%emt 0:00:04][%mdl 4096] Endgame. KRN-KRN} 32. Ra1 {[%emt 0:00:15]} Rc2+ {[%emt 0:01:29]} 33. Ke1 {[%emt 0:00:34]} Nb2 {[%emt 0:01:50] The position is equal.} 34. Kf1 {[%emt 0:01:14]} Nd3 {[%emt 0:01:16]} 35. Ne2 {[%emt 0:00:17]} Rb2 {[%emt 0:00:18]} 36. g3 {[%emt 0:00:00]} Kg7 {[%emt 0:00:28]} 37. Rd1 {[%emt 0:05:25]} Rb3 {[%emt 0:00:13]} 38. Nc1 {[%emt 0:00:13]} Nxc1 {[%emt 0:00:12]} 39. Rxc1 {[%emt 0:00:01]} Rxa3 {[%emt 0:00:06]} 40. Rc6 {[%emt 0:00:05] Weighted Error Value: White=0.07 (flawless) /Black=0.04 (flawless) .  Mistake:       	White=1     	Black=1      Inaccurate:     	White=1     	Black=2      OK:         	White=15    	Black=18     Best:        	---       	Black=4      Strong:       	White=3     	Black=3} 1/2-1/2

[Event "German Bundesliga 2024-25"]
[Site "Germany"]
[Date "2024.10.06"]
[Round "2.11"]
[White "Razafindratsima, Timothe"]
[Black "Efimenko, Zahar"]
[Result "1/2-1/2"]
[Annotator "TA"]
[ECO "C88"]
[WhiteElo "2464"]
[BlackElo "2568"]
[PlyCount "80"]
[EventDate "2024.09.27"]
[EventType "team-tourn"]
[EventCountry "GER"]
[SourceTitle "playchess.com"]
[Source "ChessBase"]
[SourceQuality "1"]
[WhiteTeam "Bad Mergentheim"]
[BlackTeam "Werder Bremen"]
[TimeControl "40/5400+30:1800+30"]

{[%evp 19,80,5,12,26,23,11,16,9,8,13,18,4,9,9,8,18,9,14,13,8,8,20,11,12,14,7,17,3,10,0,6,6,8,1,16,9,22,26,23,17,19,8,21,16,18,16,16,16,17,24,15,3,3,0,0,0,0,0,0,0,8,8,8]} 1. e4 {[%emt 0:00:05]} e5 {[%emt 0:00:54]} 2. Nf3 {[%emt 0:00:26]} Nc6 {[%emt 0:00:09]} 3. Bb5 {[%emt 0:00:14]} a6 {[%emt 0:00:12]} 4. Ba4 {[%emt 0:00:10]} Nf6 {[%emt 0:00:08]} 5. O-O {[%emt 0:00:33]} Be7 {[%emt 0:00:20]} 6. Re1 {[%emt 0:00:54]} b5 {[%emt 0:00:24]} 7. Bb3 {[%emt 0:00:08]} O-O {[%emt 0:00:40]} 8. a4 {[%emt 0:00:38]} b4 {[%emt 0:06:22]} 9. d4 {[%emt 0:00:40]} d6 {[%emt 0:00:20]} 10. dxe5 {[%emt 0:06:03]} dxe5 {[%emt 0:00:16]} 11. Nbd2 {[%emt 0:00:06]} Bc5 {[%emt 0:00:44]} 12. Qe2 {[%emt 0:01:06]} Qe7 {[%emt 0:14:32]} 13. Bd5 {[%emt 0:19:04]} Nxd5 {[%emt 0:01:52]} 14. exd5 {[%emt 0:01:44]} Nd4 {[%emt 0:00:15]} 15. Nxd4 {[%emt 0:07:05]} Bxd4 {[%emt 0:00:10]} 16. Nb3 {[%emt 0:00:02] [#] Wards off Qc5. Strongly threatening Nxd4.} Qd6 {[%emt 0:04:05]} 17. Nxd4 {[%emt 0:17:32]} exd4 {[%emt 0:00:48]} 18. Qe4 {[%emt 0:01:09][%cal Oc1f4]} Bb7 {[%emt 0:01:25]} 19. Qxd4 {[%emt 0:00:42]} Qxd5 {[%emt 0:00:18]} 20. Qxd5 {[%emt 0:01:30]} Bxd5 {[%emt 0:00:13]} 21. Bf4 {[%emt 0:09:40]} Rfe8 {[%emt 0:00:48]} 22. f3 {[%emt 0:11:26]} f6 {[%emt 0:10:14]} 23. a5 {[%emt 0:08:11]} Kf7 {[%emt 0:11:25]} 24. Red1 {[%emt 0:03:32]} c6 {[%emt 0:03:47]} 25. Kf2 {[%emt 0:05:20]} Rad8 {[%emt 0:07:46]} 26. Rd2 {[%emt 0:01:19]} Rd7 {[%emt 0:10:37]} 27. Be3 {[%emt 0:00:52]} Be6 {[%emt 0:03:48]} 28. Rxd7+ {[%emt 0:01:05]} Bxd7 $11 {[%emt 0:00:03][%mdl 4096] Endgame. KRB-KRB} 29. Rd1 {[%emt 0:02:23]} Bf5 {[%emt 0:00:25]} 30. Rd6 {[%emt 0:00:31]} Re6 {[%emt 0:04:04]} 31. Rd7+ {[%emt 0:01:05]} Re7 {[%emt 0:00:28]} 32. Rxe7+ {[%emt 0:00:20]} Kxe7 {[%emt 0:00:05] KB-KB} 33. Bc5+ {[%emt 0:00:08]} Ke6 {[%emt 0:00:19]} 34. Bxb4 {[%emt 0:00:06]} Bxc2 {[%emt 0:00:03]} 35. h4 {[%emt 0:00:14] The position is equal.} h5 {[%emt 0:00:17]} 36. g4 {[%emt 0:00:27]} g6 {[%emt 0:00:15]} 37. gxh5 {[%emt 0:00:18]} gxh5 {[%emt 0:00:04]} 38. Kg3 {[%emt 0:00:25]} Kf5 {[%emt 0:00:15]} 39. Bc5 {[%emt 0:00:26]} Bb3 {[%emt 0:00:09]} 40. Bd4 {[%emt 0:00:22]} Bd5 {[%emt 0:00:07] A balanced but interesting game.   Weighted Error Value: White=0.03 (flawless) /Black=0.03 (flawless) .  OK:         	White=16    	Black=15} 1/2-1/2

[Event "German Bundesliga 2024-25"]
[Site "Germany"]
[Date "2024.10.06"]
[Round "2.12"]
[White "Bacrot, Etienne"]
[Black "Krivoborodov, Egor"]
[Result "1-0"]
[Annotator "TA"]
[ECO "B27"]
[WhiteElo "2658"]
[BlackElo "2555"]
[PlyCount "139"]
[EventDate "2024.09.27"]
[EventType "team-tourn"]
[EventCountry "GER"]
[SourceTitle "playchess.com"]
[Source "ChessBase"]
[SourceQuality "1"]
[WhiteTeam "Baden-Baden"]
[BlackTeam "Deggendorf"]
[TimeControl "40/5400+30:1800+30"]

{[%evp 46,139,23,16,19,24,37,0,0,0,3,0,20,20,35,14,58,60,70,66,101,102,110,106,96,97,100,85,91,92,116,100,110,117,143,136,136,136,136,136,136,136,136,136,136,136,136,136,147,136,136,136,143,135,143,143,144,144,158,151,151,151,151,0,151,151,158,144,156,138,146,146,146,146,147,146,168,137,158,144,220,179,192,192,211,178,224,210,682,684,816,828,861,866,828,801]} 1. e4 {[%emt 0:00:32]} c5 {[%emt 0:00:02]} 2. Nf3 {[%emt 0:00:13]} g6 {[%emt 0:00:04]} 3. c3 {[%emt 0:00:39]} d5 {[%emt 0:00:09]} 4. e5 {[%emt 0:00:27]} a6 {[%emt 0:00:06]} 5. d4 {[%emt 0:01:48]} Nc6 {[%emt 0:00:10]} 6. h3 {[%emt 0:01:26] B27: Sicilian: 2 Nf3, unusual Black 2nd moves.} Bg7 {[%emt 0:00:43]} 7. g3 $146 {[%emt 0:06:11]} ({Predecessor:} 7. Be2 f6 8. exf6 Nxf6 9. O-O O-O 10. Be3 cxd4 11. cxd4 Nh5 12. Re1 Nf4 13. Bf1 {½-½ Esipenko,A (2683)-Nakamura,H (2780) FIDE Grand Swiss 2023 (6)}) 7... Bf5 {[%emt 0:00:23]} 8. Bg2 {[%emt 0:01:13]} Qd7 {[%emt 0:00:39]} 9. Nh4 {[%emt 0:08:37]} Be4 {[%emt 0:01:09]} 10. f3 {[%emt 0:01:17]} Bxb1 {[%emt 0:00:30]} 11. Rxb1 {[%emt 0:00:02]} cxd4 {[%emt 0:03:43]} 12. cxd4 {[%emt 0:00:52]} e6 {[%emt 0:00:13]} 13. f4 {[%emt 0:01:26]} h5 {[%emt 0:07:30]} 14. Be3 {[%emt 0:17:17]} Bf8 {[%emt 0:01:11]} 15. O-O {[%emt 0:03:45]} Be7 {[%emt 0:01:02]} 16. Nf3 {[%emt 0:00:09]} Nh6 {[%emt 0:00:12]} 17. Bf2 {[%emt 0:02:42]} Kf8 {[%emt 0:06:11]} 18. Qd2 {[%emt 0:06:26]} Kg7 {[%emt 0:01:25]} 19. Rfc1 {[%emt 0:00:08]} Rac8 {[%emt 0:00:14]} 20. Bf1 {[%emt 0:00:18]} Bb4 {[%emt 0:21:38]} 21. Qd1 {[%emt 0:04:29]} Na5 {[%emt 0:00:59]} 22. Bd3 {[%emt 0:04:19]} Rxc1 {[%emt 0:10:43]} 23. Rxc1 {[%emt 0:00:11]} Rc8 {[%emt 0:00:07]} 24. Rc2 {[%emt 0:05:38]} Rxc2 {[%emt 0:15:19]} 25. Qxc2 {[%emt 0:00:08]} Qc6 {[%emt 0:00:07]} 26. Qxc6 {[%emt 0:05:11]} Nxc6 {[%emt 0:00:05]} 27. Kf1 {[%emt 0:00:04]} Ba5 {[%emt 0:02:25]} 28. Ke2 {[%emt 0:00:07]} Bb6 {[%emt 0:02:39]} 29. Bb1 {[%emt 0:00:14]} Nf5 {[%emt 0:03:14]} 30. Kd3 {[%emt 0:00:30]} Nb4+ {[%emt 0:03:30]} 31. Kc3 {[%emt 0:01:47]} Nc6 {[%emt 0:01:28]} 32. b4 {[%emt 0:03:22]} a5 {[%emt 0:01:25]} 33. b5 {[%emt 0:01:17]} Na7 {[%emt 0:00:10]} 34. Bd3 {[%emt 0:01:42]} Bd8 {[%emt 0:00:25]} 35. g4 {[%emt 0:04:36]} hxg4 {[%emt 0:00:31]} 36. hxg4 {[%emt 0:00:01]} Nh6 {[%emt 0:00:11]} 37. Nh2 {[%emt 0:00:02]} Be7 {[%emt 0:00:32]} 38. Kc2 {[%emt 0:01:23]} Nc8 {[%emt 0:07:18]} 39. Be1 {[%emt 0:05:04]} b6 {[%emt 0:00:08]} 40. Kd1 {[%emt 0:02:05]} Ba3 {[%emt 0:00:35]} 41. Bh4 {[%emt 0:32:22]} Bb2 {[%emt 0:37:21] [#]} 42. Bf2 $1 {[%emt 0:01:36]} Ba3 {[%emt 0:01:14]} 43. Kc2 {[%emt 0:03:42]} Bb4 {[%emt 0:00:30]} 44. Bh4 {[%emt 0:01:39]} Be7 {[%emt 0:00:49]} 45. Be1 {[%emt 0:03:56]} Ba3 {[%emt 0:00:43]} 46. Bd2 {[%emt 0:00:00]} Be7 {[%emt 0:00:00]} 47. Kd1 {[%emt 0:00:00]} Ba3 {[%emt 0:00:00]} 48. Be3 {[%emt 0:00:00]} Bb4 {[%emt 0:00:00]} 49. Kc2 {[%emt 0:00:00]} Ba3 {[%emt 0:00:00]} 50. Bf1 {[%emt 0:00:00]} Bb4 {[%emt 0:00:00]} 51. Bh3 {[%emt 0:00:00]} Na7 {[%emt 0:00:00] [#]} 52. a4 $1 {[%emt 0:00:00]} Nc8 {[%emt 0:00:00]} 53. Nf1 {[%emt 0:00:00]} Ne7 {[%emt 0:00:00]} 54. Nh2 {[%emt 0:00:00]} Nc8 {[%emt 0:00:00]} 55. Nf3 {[%emt 0:00:00]} Ne7 {[%emt 0:00:00]} 56. Bf2 {[%emt 0:00:00]} Nc8 {[%emt 0:00:00]} 57. Bh4 {[%emt 0:00:00]} Be7 {[%emt 0:00:00]} 58. Be1 {[%emt 0:00:00]} Bd8 {[%emt 0:00:00]} 59. Kd3 {[%emt 0:00:00]} Be7 {[%emt 0:00:00]} 60. Bc3 {[%emt 0:00:00]} Ba3 {[%emt 0:00:00]} 61. Nd2 {[%emt 0:01:58]} Be7 {[%emt 0:00:00]} 62. Nf1 {[%emt 0:00:46]} Ba3 {[%emt 0:00:00]} (62... Bd8 $16 63. Bb2 g5) 63. Kc2 {[%emt 0:00:23]} Be7 {[%emt 0:00:00]} 64. Ne3 {[%emt 0:01:09]} Kh7 {[%emt 0:00:00]} 65. Kd3 {[%emt 0:01:03]} Kg8 {[%emt 0:00:00]} (65... Bd8 {was necessary.} 66. f5 gxf5) 66. f5 {[%emt 0:02:11]} Na7 $2 {[%emt 0:11:43]} (66... Bg5 67. f6 Kh8) 67. f6 $18 {[%emt 0:01:03]} Bd8 {[%emt 0:00:32]} 68. g5 {[%emt 0:00:49]} Nf5 {[%emt 0:00:05]} 69. Bxf5 {[%emt 0:00:06]} gxf5 {[%emt 0:00:02]} 70. Ng2 {[%emt 0:00:08]} 1-0